bitfinex/quotes_SOLUSD_20240716
["timestamp","ask_amount","ask_price","bid_price","bid_amount"]
[1721137769354,1.59404875,156.85,156.8,22.3209]
[1721137769533,46.59404875,156.85,156.81,6.377]
[1721137769850,12.8561,156.84,156.79,7.2197054]
[1721137770150,1.59426423,156.83,156.79,7.2197054]
[1721137770721,1.59426419,156.82,156.79,0.8419054]
[1721137771140,1.59426419,156.82,156.79,7.2197054]
[1721137771321,1.59426419,156.82,156.79,0.8419054]
[1721137772043,1.59440196,156.82,156.79,7.2196054]
[1721137773128,1.59440196,156.82,156.79,0.8419054]
[1721137773947,1.59440196,156.82,156.79,7.2198054]
[1721137774262,21.6126,156.84,156.8,6.3774]
[1721137774549,11.42706643,156.83,156.79,0.8419054]
[1721137774760,45.17,156.82,156.79,0.8419054]
[1721137774951,0.96740731,156.81,156.79,0.8419054]
[1721137775127,7.34450731,156.81,156.79,0.8419054]
[1721137775519,0.96740731,156.81,156.79,0.8419054]
[1721137776158,10.0,156.86,156.82,6.3766]
[1721137776326,22.8545,156.88,156.85,6.3752]
[1721137776527,10.0,156.87,156.83,22.3161]
[1721137776728,10.0,156.87,156.79,0.8419054]
[1721137776729,7.67976224,156.86,156.79,0.8419054]
[1721137777059,11.30456224,156.85,156.79,0.8419054]
[1721137777348,6.3764,156.83,156.79,0.8419054]
[1721137777547,1.30456224,156.82,156.79,0.8419054]
[1721137777729,46.30456224,156.82,156.79,0.8419054]
[1721137778147,1.30456224,156.82,156.79,0.8419054]
[1721137778730,1.30456224,156.82,156.79,7.2197054]
[1721137779457,1.30456224,156.84,156.8,6.3774]
[1721137779752,46.64456224,156.84,156.8,6.3773]
[1721137780044,46.30456224,156.84,156.79,23.1637054]
[1721137780262,52.68056224,156.84,156.79,23.1637054]
[1721137780424,46.30456224,156.84,156.8,6.3774]
[1721137780628,45.0,156.85,156.79,16.7859054]
[1721137780835,46.30456224,156.85,156.81,6.3768]
[1721137781161,29.2289,156.88,156.82,6.3766]
[1721137781456,10.0,156.87,156.81,15.9423]
[1721137781633,1.30456224,156.86,156.81,22.3191]
[1721137781834,22.8545,156.88,156.83,6.376]
[1721137782045,24.15906224,156.88,156.84,6.3757]
[1721137782256,1.30456224,156.88,156.84,6.3757]
[1721137782724,1.30456224,156.88,156.87,6.3747]
[1721137782930,1.30456224,156.9,156.86,6.375]
[1721137783141,1.30456224,156.89,156.86,6.375]
[1721137783347,1.30456224,156.91,156.86,7.64992144]
[1721137783552,24.07806224,156.92,156.87,17.2106263]
[1721137783760,1.30456224,156.91,156.88,6.3741]
[1721137783928,6.3725,156.93,156.87,22.3103]
[1721137784128,1.30456224,156.92,156.87,22.3103]
[1721137784435,1.30456224,156.94,156.87,22.3103]
[1721137784741,6.3723,156.93,156.87,22.3103]
[1721137784930,7.67726224,156.92,156.87,22.3103]
[1721137785131,17.67756224,156.92,156.86,6.3748]
[1721137785336,17.67756224,156.92,156.84,15.9396]
[1721137785337,45.17,156.91,156.84,15.9396]
[1721137785641,1.30456224,156.9,156.84,15.9396]
[1721137785853,1.30456224,156.89,156.86,6.375]
[1721137786724,1.30456224,156.9,156.87,6.3743]
[1721137786955,46.30456224,156.91,156.87,6.3743]
[1721137787332,1.30456224,156.91,156.86,15.937]
[1721137787530,1.30456224,156.92,156.86,15.937]
[1721137787730,1.30456224,156.92,156.88,6.3739]
[1721137788132,10.0,156.91,156.86,22.3117]
[1721137788336,1.30456224,156.9,156.84,6.3755]
[1721137788526,1.30456224,156.9,156.81,31.8838]
[1721137788730,1.30456224,156.89,156.86,6.3749]
[1721137789141,1.30456224,156.9,156.86,6.3749]
[1721137789353,1.30456224,156.89,156.85,22.3137]
[1721137789551,1.30456224,156.89,156.85,15.9383]
[1721137789752,1.30456224,156.89,156.85,22.3137]
[1721137789967,1.30456224,156.89,156.86,6.375]
[1721137790129,1.30456224,156.89,156.81,31.8838]
[1721137790333,1.30456224,156.89,156.84,6.3758]
[1721137790334,7.67846224,156.89,156.84,6.3758]
[1721137790566,45.0,156.88,156.84,6.3758]
[1721137790878,7.67926224,156.87,156.83,15.9404]
[1721137791167,17.67926224,156.87,156.81,6.3768]
[1721137791341,61.5451,156.86,156.8,15.9436]
[1721137791532,1.30456224,156.85,156.8,15.9436]
[1721137791727,46.30456224,156.85,156.81,6.3768]
[1721137792337,46.30456224,156.85,156.8,22.321]
[1721137792954,52.68016224,156.85,156.8,22.321]
[1721137793165,46.30456224,156.85,156.8,22.321]
[1721137793359,46.30456224,156.85,156.81,6.377]
[1721137793970,52.68016224,156.85,156.8,15.9436]
[1721137794263,52.68016224,156.85,156.8,22.3211]
[1721137794487,10.17,156.88,156.8,15.9436]
[1721137794653,46.47456224,156.87,156.82,6.3764]
[1721137795283,1.30456224,156.87,156.83,6.3762]
[1721137795473,1.30456224,156.89,156.85,6.3751]
[1721137795880,1.30456224,156.89,156.84,22.315]
[1721137796064,7.67856224,156.89,156.84,22.315]
[1721137796393,1.30456224,156.89,156.84,22.315]
[1721137796564,7.67876224,156.89,156.84,15.9392]
[1721137796766,7.67876224,156.89,156.84,22.3151]
[1721137797279,7.67846224,156.89,156.84,22.3151]
[1721137797692,6.3743,156.88,156.84,15.9392]
[1721137797857,1.30456224,156.87,156.84,15.9392]
[1721137798058,1.30456224,156.87,156.79,0.8419054]
[1721137798280,1.30456224,156.89,156.79,0.8419054]
[1721137798488,56.30456224,156.89,156.82,15.9415]
[1721137798686,6.3751,156.86,156.82,15.9415]
[1721137798894,10.0,156.87,156.79,0.8419054]
[1721137798895,7.68006224,156.85,156.8,6.3774]
[1721137799076,7.68006224,156.85,156.79,23.1641054]
[1721137799262,1.30456224,156.85,156.81,6.3771]
[1721137799601,52.68006224,156.85,156.8,6.3775]
[1721137799782,1.30456224,156.84,156.8,6.3775]
[1721137800157,45.0,156.85,156.81,6.377]
[1721137800484,1.30456224,156.87,156.83,6.3762]
[1721137800692,46.30456224,156.87,156.83,6.3762]
[1721137800884,46.30456224,156.87,156.84,6.3758]
[1721137801091,46.30456224,156.88,156.82,1.27508517]
[1721137801270,1.30456224,156.88,156.86,6.3748]
[1721137801475,1.30456224,156.89,156.85,22.3134]
[1721137802365,7.67686224,156.93,156.87,22.3107]
[1721137802565,16.1229,156.95,156.89,15.934]
[1721137802566,1.30456224,156.94,156.89,15.934]
[1721137802989,7.67646224,156.94,156.89,22.3077]
[1721137803364,23.40796224,156.95,156.91,6.3727]
[1721137803561,7.67516224,156.97,156.92,6.3724]
[1721137803764,1.30456224,156.97,156.93,6.3722]
[1721137803975,1.30456224,156.97,156.91,15.932]
[1721137803976,1.30456224,156.97,156.92,6.3725]
[1721137804266,7.67536224,156.97,156.91,22.3049]
[1721137804496,1.30456224,156.97,156.92,6.3725]
[1721137804992,6.371,156.96,156.91,22.3049]
[1721137805176,1.30456224,156.97,156.92,6.3725]
[1721137805379,1.30456224,156.97,156.91,15.932]
[1721137805587,1.30456224,156.98,156.92,1.27422646]
[1721137805764,1.30456224,156.98,156.93,6.3722]
[1721137805968,1.30456224,156.98,156.92,15.9312]
[1721137806371,1.30456224,156.98,156.93,6.3721]
[1721137806778,1.30456224,156.98,156.94,6.3716]
[1721137807091,1.30456224,156.98,156.95,6.3714]
[1721137807468,11.30456224,157.02,156.96,6.371]
[1721137807679,1.30456224,157.02,156.96,6.371]
[1721137808887,6.3695,157.0,156.95,6.3713]
[1721137809074,7.67436224,156.99,156.94,15.929]
[1721137809275,1.30456224,156.99,156.94,15.929]
[1721137809473,7.67406224,157.0,156.94,15.929]
[1721137809693,1.30456224,157.0,156.94,15.929]
[1721137809995,1.47456224,157.02,156.97,6.3705]
[1721137810178,1.30456224,157.02,156.98,6.3698]
[1721137810694,10.0,157.05,156.99,6.3697]
[1721137810695,7.67236224,157.04,156.99,6.3697]
[1721137810889,7.67236224,157.04,156.98,22.2952]
[1721137811190,6.3687,157.02,156.97,6.3706]
[1721137811403,7.67236224,157.04,156.97,15.9259]
[1721137811691,1.30456224,157.04,156.99,6.3696]
[1721137811898,46.30456224,157.04,156.97,22.2962]
[1721137812189,6.3686,157.02,156.97,15.9259]
[1721137812371,1.30456224,157.01,156.97,22.2963]
[1721137812572,1.30456224,157.02,156.97,15.9259]
[1721137812789,1.30456224,157.02,156.99,6.3697]
[1721137813092,1.30456224,157.02,156.98,6.3701]
[1721137813677,1.30456224,157.03,156.99,7.64358733]
[1721137813880,1.30456224,157.03,156.97,15.9259]
[1721137813881,1.30456224,157.03,156.98,6.3701]
[1721137814203,10.0,157.02,156.95,6.3713]
[1721137814403,10.0,157.02,156.94,32.4726]
[1721137814404,46.30456224,157.01,156.96,6.3708]
[1721137814576,1.30456224,157.01,156.98,6.3701]
[1721137814776,1.30456224,157.03,156.99,1.27395091]
[1721137814990,1.30456224,157.03,157.0,6.3693]
[1721137815302,1.30456224,157.04,156.99,6.3697]
[1721137815469,11.30456224,157.04,156.98,15.925]
[1721137815673,11.30456224,157.04,156.97,6.3705]
[1721137815871,16.3689,157.02,156.96,6.3707]
[1721137816098,16.3689,157.02,156.95,15.9282]
[1721137816099,1.30456224,157.01,156.98,6.37]
[1721137816273,1.30456224,157.02,156.99,6.3697]
[1721137816474,1.30456224,157.01,156.98,6.3701]
[1721137816701,1.30456224,157.03,156.98,6.3701]
[1721137816897,52.67296224,157.03,156.97,22.2966]
[1721137817201,46.30456224,157.03,156.98,6.3701]
[1721137817592,52.67276224,157.03,156.98,6.3701]
[1721137817771,6.3686,157.02,156.97,22.2966]
[1721137817977,7.67366224,157.01,156.95,6.3711]
[1721137818288,45.0,157.0,156.94,32.4726]
[1721137818601,1.30456224,156.99,156.94,32.4726]
[1721137819280,1.30456224,156.99,156.96,6.3707]
[1721137820188,16.5387,157.02,156.97,6.3706]
[1721137820482,53.01386224,157.01,156.94,32.4726]
[1721137820717,1.30456224,157.01,156.98,6.37]
[1721137821003,1.30456224,157.01,156.96,15.927]
[1721137821207,6.3682,157.03,156.96,15.927]
[1721137821504,1.30456224,157.02,156.98,15.9248]
[1721137821692,1.30456224,157.01,156.98,22.2949]
[1721137822091,1.30456224,157.02,156.98,22.2949]
[1721137822302,1.30456224,157.05,157.0,15.9225]
[1721137822606,1.30456224,157.05,157.01,1.27364159]
[1721137822904,17.89856224,157.06,157.02,6.3684]
[1721137823485,24.26556224,157.06,157.0,22.2918]
[1721137823687,6.3682,157.03,156.97,15.9262]
[1721137823892,1.30456224,157.02,156.98,6.3701]
[1721137824103,1.30456224,157.01,156.97,22.2966]
[1721137824402,1.30456224,157.01,156.98,6.3701]
[1721137824584,1.30456224,157.04,157.0,6.3694]
[1721137824779,6.3686,157.02,156.97,22.2964]
[1721137824991,1.30456224,157.01,156.97,22.2964]
[1721137825190,1.30456224,157.0,156.94,15.9289]
[1721137825405,1.30456224,157.0,156.95,6.3714]
[1721137825780,1.30456224,157.0,156.96,6.3709]
[1721137826005,1.30456224,157.0,156.94,22.3003]
[1721137826006,7.67396224,157.0,156.94,22.3003]
[1721137826587,6.3699,156.99,156.94,15.9289]
[1721137826787,1.30456224,156.98,156.94,15.9289]
[1721137827607,1.30456224,156.98,156.94,22.3006]
[1721137827799,46.30456224,156.98,156.94,22.3006]
[1721137827978,46.30456224,156.98,156.94,15.9289]
[1721137828180,0.17,157.02,156.96,15.9271]
[1721137828384,1.30456224,157.02,156.94,31.8589]
[1721137828710,1.30456224,157.03,157.0,6.3693]
[1721137829885,1.30456224,157.03,156.99,7.64347463]
[1721137830200,1.30456224,157.03,156.95,15.928]
[1721137830384,6.3687,157.02,156.97,6.3704]
[1721137830582,1.30456224,157.03,156.98,1.2739591]
[1721137830778,1.30456224,157.03,156.99,6.3698]
[1721137831503,1.30456224,157.05,157.01,6.3686]
[1721137832045,1.30456224,157.04,157.0,7.64284224]
[1721137832320,1.30456224,157.05,157.0,7.64284224]
[1721137832712,1.30456224,157.04,157.0,7.64284224]
[1721137832908,7.67196224,157.05,157.0,7.64284224]
[1721137833328,1.30456224,157.04,157.0,7.64284224]
[1721137833531,7.67196224,157.05,157.0,7.64284224]
[1721137833724,1.30456224,157.04,157.0,7.64284224]
[1721137833933,7.67196224,157.05,157.0,7.64284224]
[1721137834429,1.30456224,157.04,156.97,15.822]
[1721137834614,46.30456224,157.04,156.97,15.822]
[1721137834818,45.17,157.03,156.93,16.5242]
[1721137835010,1.30456224,157.03,156.93,16.5242]
[1721137835213,6.3682,157.03,156.98,6.3702]
[1721137835510,6.3678,157.04,156.99,7.64320682]
[1721137836039,6.3678,157.04,157.0,1.2736952]
[1721137836241,1.30456224,157.05,157.0,1.2736952]
[1721137836242,6.3674,157.05,157.0,7.6429952]
[1721137836612,6.3679,157.04,156.99,15.9237]
[1721137836835,6.3675,157.05,156.99,22.2934]
[1721137837132,1.30456224,157.06,156.99,15.9237]
[1721137837311,1.30456224,157.05,156.99,15.9237]
[1721137837511,1.30456224,157.04,156.99,15.9237]
[1721137837714,6.3679,157.04,156.99,22.2933]
[1721137838121,6.3679,157.04,157.0,1.27361131]
[1721137838318,6.3682,157.03,156.98,22.2955]
[1721137839131,6.3679,157.04,156.99,7.6435167]
[1721137839349,7.67196224,157.05,157.0,6.3693]
[1721137839545,7.67156224,157.06,157.01,7.64245445]
[1721137839735,7.67136224,157.07,157.02,7.64181915]
[1721137840112,7.67136224,157.07,157.0,32.4775]
[1721137840113,6.3669,157.06,157.01,6.3689]
[1721137840535,7.67126224,157.07,157.02,1.27349832]
[1721137840847,6.367,157.06,157.02,1.27349832]
[1721137841040,6.367,157.06,157.0,38.8467]
[1721137841343,6.3674,157.05,157.0,38.8467]
[1721137842352,6.367,157.06,157.01,6.3689]
[1721137843129,6.367,157.06,157.02,1.27349779]
[1721137843314,7.67116224,157.07,157.02,7.64199779]
[1721137843511,1.30456224,157.08,157.03,1.27349809]
[1721137843727,1.30456224,157.1,157.05,6.3672]
[1721137843911,1.30456224,157.1,157.06,1.2732323]
[1721137844128,7.67016224,157.1,157.05,1.2732412]
[1721137844333,6.3663,157.08,157.01,15.9222]
[1721137844528,1.30456224,157.1,157.02,1.27332875]
[1721137844729,6.3658,157.09,157.02,1.27332875]
[1721137845116,7.66996224,157.1,157.04,6.3677]
[1721137845518,6.3658,157.09,157.04,6.3677]
[1721137845813,1.30456224,157.08,157.0,32.4775]
[1721137846015,6.3654,157.1,157.04,6.3677]
[1721137846423,6.3658,157.09,157.04,15.9189]
[1721137846650,6.3662,157.08,157.02,6.3682]
[1721137846968,10.0,157.1,157.02,6.3682]
[1721137847253,6.3664,157.08,157.02,6.3682]
[1721137847546,7.67036224,157.09,157.03,7.64131206]
[1721137847740,7.66996224,157.1,157.04,6.3677]
[1721137848043,7.66996224,157.1,157.05,6.3673]
[1721137848338,6.3658,157.09,157.04,6.3677]
[1721137848730,7.66996224,157.1,157.04,6.3677]
[1721137849224,6.3648,157.12,157.05,16.60782955]
[1721137849425,2.76439362,157.11,157.06,1.27306558]
[1721137849633,6.3648,157.12,157.07,6.3664]
[1721137849832,9.12939041,157.11,157.06,6.3668]
[1721137850041,6.365,157.11,157.06,6.3668]
[1721137850227,6.5516,157.16,157.07,17.1891918]
[1721137850548,6.82388027,157.15,157.08,1.27294086]
[1721137850726,4.06794112,157.14,157.08,1.27294086]
[1721137850929,2.76337888,157.13,157.08,1.27294086]
[1721137851138,1.30456224,157.16,157.09,15.9137]
[1721137851327,1.30456224,157.16,157.1,7.63793092]
[1721137851522,7.66756224,157.16,157.11,1.27278623]
[1721137851842,6.3637,157.14,157.09,15.9137]
[1721137852230,1.30456224,157.17,157.09,15.9137]
[1721137852431,2.76147065,157.16,157.11,6.3648]
[1721137852621,1.30456224,157.17,157.12,1.19752334]
[1721137852822,9.12458709,157.16,157.11,6.3648]
[1721137853035,6.3632,157.16,157.1,6.3652]
[1721137853255,6.3624,157.18,157.11,17.1844984]
[1721137853545,7.66716224,157.17,157.11,15.9118]
[1721137853730,1.30456224,157.16,157.11,15.9118]
[1721137853932,1.30456224,157.18,157.12,6.3645]
[1721137854131,6.3625,157.17,157.13,1.27261665]
[1721137854940,1.30456224,157.19,157.13,6.364]
[1721137855140,2.76039311,157.18,157.11,15.9118]
[1721137855342,2.76039311,157.17,157.11,15.9118]
[1721137855538,11.30456224,157.19,157.11,15.9118]
[1721137855737,6.3628,157.17,157.11,22.2764]
[1721137855936,6.3629,157.16,157.11,22.2764]
[1721137856438,1.30456224,157.17,157.11,15.9118]
[1721137856641,1.30456224,157.2,157.11,15.9118]
[1721137856835,2.93097193,157.19,157.11,15.9118]
[1721137857042,2.76097193,157.18,157.13,6.364]
[1721137857241,1.30456224,157.19,157.13,6.364]
[1721137858240,2.76083446,157.18,157.12,6.3644]
[1721137858550,1.30456224,157.19,157.12,6.3644]
[1721137858754,6.3622,157.18,157.12,6.3644]
[1721137859448,6.3622,157.18,157.13,6.364]
[1721137860232,1.30456224,157.19,157.14,6.3636]
[1721137860452,6.3617,157.2,157.13,15.91]
[1721137860639,6.3617,157.2,157.15,7.63539158]
[1721137861033,6.3617,157.2,157.14,15.7927]
[1721137861034,1.30456224,157.19,157.14,15.7927]
[1721137861242,6.3628,157.17,157.14,15.7927]
[1721137861444,6.3622,157.18,157.13,6.3641]
[1721137861656,1.30456224,157.19,157.14,6.3637]
[1721137861657,7.66636224,157.19,157.14,6.3637]
[1721137861846,1.30456224,157.19,157.14,6.3637]
[1721137862049,11.30456224,157.23,157.1,41.1162]
[1721137862255,11.30456224,157.23,157.15,6.3629]
[1721137862440,27.20536224,157.23,157.14,22.2725]
[1721137862758,6.3621,157.18,157.14,15.9089]
[1721137863157,7.66706224,157.17,157.12,6.3644]
[1721137863344,7.66706224,157.17,157.1,15.7927]
[1721137863345,11.30456224,157.17,157.1,15.7927]
[1721137863540,45.0,157.16,157.07,15.9155]
[1721137863739,6.3642,157.13,157.08,6.3659]
[1721137864059,6.3638,157.14,157.08,6.3659]
[1721137864244,1.30456224,157.13,157.08,6.3659]
[1721137864445,1.30456224,157.13,157.09,6.3657]
[1721137864847,6.365,157.11,157.07,15.9155]
[1721137865162,1.30456224,157.12,157.07,22.2819]
[1721137865368,1.30456224,157.12,157.06,22.9752]
[1721137865663,7.66906224,157.13,157.07,7.63961536]
[1721137865879,7.66786224,157.15,157.1,6.3653]
[1721137866055,1.30456224,157.14,157.08,15.9148]
[1721137866568,1.30456224,157.15,157.1,6.3651]
[1721137867070,6.363,157.16,157.11,7.63750775]
[1721137867673,1.30456224,157.15,157.1,15.9129]
[1721137867872,6.3638,157.14,157.08,6.3661]
[1721137868180,6.3645,157.13,157.07,15.9162]
[1721137869046,6.3638,157.14,157.08,6.3657]
[1721137869552,1.30456224,157.13,157.06,16.6083]
[1721137869764,6.3654,157.1,157.06,16.6083]
[1721137870068,25.9286,156.95,156.85,16.0933]
[1721137870286,1.30456224,156.94,156.85,16.0933]
[1721137870570,1.30456224,156.96,156.85,16.0933]
[1721137870875,1.30456224,156.98,156.85,16.0933]
[1721137871053,10.0,156.97,156.87,15.936]
[1721137871258,6.3718,156.94,156.88,6.3742]
[1721137871670,6.3715,156.95,156.88,6.3742]
[1721137873769,1.30456224,156.97,156.86,51.0347]
[1721137874074,6.3712,156.96,156.89,6.3734]
[1721137874239,6.3712,156.96,156.9,6.3732]
[1721137875242,6.3712,156.96,156.87,45.0]
[1721137875243,1.30456224,156.97,156.92,6.3726]
[1721137875439,6.3707,156.97,156.92,6.3726]
[1721137875664,6.3707,156.97,156.91,22.3056]
[1721137875871,6.3717,156.95,156.89,6.3738]
[1721137876243,6.65178919,156.98,156.88,15.9356]
[1721137876244,1.30456224,156.94,156.88,15.9356]
[1721137876461,6.3726,156.93,156.88,15.9356]
[1721137877060,1.30456224,157.0,156.89,58.24111855]
[1721137877278,1.30456224,157.03,156.9,1.27395292]
[1721137877489,6.3695,157.0,156.94,22.3006]
[1721137877649,6.3695,157.0,156.95,1.27395416]
[1721137877958,6.3695,157.0,156.96,1.27395416]
[1721137878159,1.30456224,157.03,156.97,1.27395381]
[1721137878362,1.30456224,157.04,156.98,6.37]
[1721137878677,1.30456224,157.04,156.97,6.3705]
[1721137879049,6.3685,157.03,156.97,6.3705]
[1721137879262,6.3686,157.02,156.96,22.2976]
[1721137879456,6.3691,157.01,156.96,22.2975]
[1721137879654,1.30456224,157.04,156.96,22.2975]
[1721137879968,6.3689,157.02,156.96,22.2975]
[1721137880153,6.3689,157.02,156.97,6.3704]
[1721137880651,6.65020466,157.05,156.98,15.9248]
[1721137880855,6.3677,157.05,156.99,6.3695]
[1721137881069,6.3677,157.05,157.0,1.27360827]
[1721137881382,1.30456224,157.06,157.01,15.9222]
[1721137881585,6.3675,157.05,157.02,1.27356559]
[1721137881749,6.3675,157.05,157.0,1.27356355]
[1721137882078,6.367,157.06,157.0,17.19656355]
[1721137882969,6.367,157.06,157.01,1.2734139]
[1721137883168,6.367,157.06,157.02,1.27341364]
[1721137883680,1.30456224,157.08,157.02,1.27341364]
[1721137883855,6.2858,157.11,157.02,15.9209]
[1721137883856,1.30456224,157.1,157.02,15.9209]
[1721137884058,1.30456224,157.1,157.03,1.27334765]
[1721137884374,6.3664,157.08,157.03,7.64154765]
[1721137884753,6.3658,157.09,157.03,7.64154765]
[1721137884966,6.3662,157.08,157.02,22.2894]
[1721137885265,1.30456224,157.1,157.03,6.368]
[1721137885571,22.56688084,157.12,157.03,6.368]
[1721137885572,1.30456224,157.11,157.03,6.368]
[1721137885799,1.30456224,157.1,157.03,6.368]
[1721137885945,17.21836224,157.1,156.99,22.0617]
[1721137886149,6.3675,157.05,157.0,6.7092]
[1721137886346,6.3675,157.05,157.0,6.5392]
[1721137886568,6.3675,157.05,157.0,6.3692]
[1721137886981,6.3671,157.06,157.01,6.3689]
[1721137887347,6.3671,157.06,157.0,6.3693]
[1721137887560,6.3675,157.05,156.99,22.0617]
[1721137887853,6.3675,157.05,157.0,6.369]
[1721137888304,7.67026224,157.09,157.04,6.3677]
[1721137888454,6.3662,157.08,157.05,1.2733152]
[1721137889072,6.3659,157.09,157.05,1.2733152]
[1721137889676,6.3654,157.1,157.05,1.2733152]
[1721137889979,7.66996224,157.1,157.05,1.2733152]
[1721137890170,1.30456224,157.1,157.05,1.2733152]
[1721137890380,1.30456224,157.12,157.03,15.9201]
[1721137890567,6.3666,157.07,157.03,15.9201]
[1721137890755,6.3662,157.08,157.03,22.2882]
[1721137890955,6.3658,157.09,157.04,6.3677]
[1721137891181,6.3661,157.08,157.03,22.2881]
[1721137891380,15.9127,157.11,157.0,15.9228]
[1721137891570,6.3666,157.07,157.02,6.3685]
[1721137891759,6.3669,157.06,157.01,6.3688]
[1721137891956,6.3667,157.07,157.02,6.3685]
[1721137892184,1.30456224,157.1,157.04,6.3675]
[1721137892359,6.3663,157.08,157.03,6.368]
[1721137892679,1.30456224,157.1,157.04,6.3676]
[1721137892987,1.30456224,157.1,157.02,22.2891]
[1721137893168,6.3668,157.07,157.02,22.2891]
[1721137893367,1.30456224,157.1,157.02,15.9209]
[1721137893572,6.367,157.06,157.02,15.9209]
[1721137893986,6.3674,157.05,157.0,6.3693]
[1721137894174,6.3679,157.04,156.99,28.4316]
[1721137894557,6.3675,157.05,156.99,28.4313]
[1721137895671,6.3675,157.05,157.0,6.3693]
[1721137895866,15.9159,157.08,156.99,15.9243]
[1721137895867,1.30456224,157.04,156.99,15.9243]
[1721137896068,1.30456224,157.04,156.98,6.3701]
[1721137896069,6.3683,157.03,156.98,6.3701]
[1721137896270,6.3683,157.03,156.97,6.3705]
[1721137896757,10.0,157.07,156.95,21.5239]
[1721137896758,56.30456224,157.02,156.95,21.5239]
[1721137896963,7.67356224,157.01,156.95,21.5237]
[1721137897175,7.67356224,157.01,156.95,15.1526]
[1721137897375,7.67356224,157.01,156.95,21.524]
[1721137897770,6.37,156.99,156.95,15.1526]
[1721137898285,7.67486224,156.98,156.93,22.3023]
[1721137898465,1.30456224,156.97,156.93,22.3023]
[1721137899293,6.3698,156.99,156.94,6.3718]
[1721137899583,6.3694,157.0,156.94,6.3718]
[1721137899782,1.30456224,157.01,156.95,6.3713]
[1721137899992,1.30456224,157.01,156.96,1.27395937]
[1721137900183,1.30456224,157.01,156.95,22.2988]
[1721137900378,6.369,157.01,156.96,6.3709]
[1721137900763,6.3685,157.03,156.97,6.3705]
[1721137900980,1.30456224,157.02,156.97,6.3705]
[1721137901183,1.30456224,157.04,156.97,6.3705]
[1721137901372,46.30456224,157.04,156.97,6.3705]
[1721137901584,7.67266224,157.04,156.98,1.27381005]
[1721137901894,7.67266224,157.04,156.99,1.27375982]
[1721137902192,6.3681,157.04,156.99,1.27375982]
[1721137902493,1.30456224,157.04,156.97,15.926]
[1721137902706,1.30456224,157.04,156.96,6.371]
[1721137903489,1.30456224,157.04,156.99,6.3697]
[1721137903798,1.30456224,157.04,156.96,6.3706]
[1721137903799,6.3691,157.01,156.96,6.3706]
[1721137904294,6.3686,157.03,156.97,1.2738688]
[1721137904501,7.67316224,157.02,156.97,1.2738688]
[1721137904672,6.369,157.01,156.95,22.2995]
[1721137905089,6.369,157.01,156.96,7.5110166]
[1721137906063,6.369,157.01,156.96,6.3709]
[1721137906296,1.30456224,157.04,156.96,6.3709]
[1721137906480,6.3687,157.02,156.97,1.27383029]
[1721137906871,6.3687,157.02,156.97,7.64433029]
[1721137907774,6.3691,157.01,156.96,6.3709]
[1721137908202,1.30456224,157.04,156.95,15.9282]
[1721137908203,6.3695,157.0,156.95,15.9282]
[1721137908511,7.67466224,156.99,156.94,6.3714]
[1721137908690,7.67466224,156.99,156.92,15.9312]
[1721137908691,6.3695,157.0,156.95,6.3713]
[1721137909378,10.0,157.03,156.94,15.9292]
[1721137909379,7.67436224,156.99,156.94,22.3009]
[1721137909708,6.3698,156.99,156.94,22.3009]
[1721137910184,7.67486224,156.98,156.91,22.2554]
[1721137910383,6.3703,156.98,156.91,22.2554]
[1721137910882,7.67516224,156.97,156.91,15.9322]
[1721137911206,6.3713,156.96,156.91,15.9322]
[1721137911502,7.67526224,156.97,156.91,22.3049]
[1721137912103,1.30456224,156.98,156.93,15.93]
[1721137912403,6.3707,156.97,156.93,15.93]
[1721137912587,1.30456224,156.97,156.93,15.93]
[1721137912792,7.67516224,156.97,156.93,17.20430809]
[1721137912979,7.67516224,156.97,156.91,6.3729]
[1721137913184,6.3714,156.95,156.9,15.9334]
[1721137913484,1.30456224,156.94,156.9,15.9334]
[1721137913899,6.3727,156.92,156.87,22.4824]
[1721137914077,1.30456224,156.94,156.87,15.9364]
[1721137914383,6.3719,156.94,156.89,6.3737]